{"text_format":"1","workbook":"xlsx","n_sheets":3,"sheets":["Audit","Report To NHSE","Sheet3"],"not_rendered":{"charts":0,"images":0,"macros":1,"external_links":1,"defined_names":0,"comments":0,"pivot_tables":0},"unopened":[],"bounds":{"document_bytes":16777216,"sheet_cells":100000,"rows_first":2000,"rows_last":500,"rows_between":2000,"halvings":0,"cell_chars":16384,"cell_head_chars":4096},"cells_cut":0,"cells_raw":0,"read":"whole","date_system":"1900"}

{"sheet":"Audit","index":0,"n_rows":24,"n_cols":95,"rows_kept":24,"cut":false,"hidden":false,"merged":[[0,90,0,93],[0,89,1,89],[0,88,1,88],[0,72,0,74],[0,75,0,76],[0,77,0,78],[0,79,0,80],[0,81,0,82],[0,14,1,14],[0,3,1,3],[0,6,1,6],[0,9,1,9],[0,12,1,12],[0,7,1,7],[0,8,1,8],[0,10,1,10],[0,11,1,11],[0,13,1,13],[0,0,1,0],[0,1,1,1],[0,2,1,2],[0,4,1,4],[0,5,1,5],[0,29,1,29],[0,31,1,31],[0,32,1,32],[0,30,1,30],[0,33,1,33],[0,69,1,69],[0,35,1,35],[0,37,1,37],[0,38,1,38],[0,40,1,40],[0,41,1,41],[0,36,1,36],[0,39,1,39],[0,43,1,43],[0,44,1,44],[0,46,1,46],[0,47,1,47],[0,49,1,49],[0,48,1,48],[0,42,1,42],[0,45,1,45],[0,64,1,64],[0,65,1,65],[0,67,1,67],[0,68,1,68],[0,63,1,63],[0,66,1,66],[0,62,1,62],[0,15,1,15],[0,18,1,18],[0,21,1,21],[0,24,1,24],[0,27,1,27],[0,16,1,16],[0,34,1,34],[0,17,1,17],[0,19,1,19],[0,20,1,20],[0,22,1,22],[0,23,1,23],[0,25,1,25],[0,26,1,26],[0,28,1,28],[0,71,1,71],[0,94,1,94],[0,83,0,87],[0,50,1,50],[0,51,1,51],[0,54,1,54],[0,57,1,57],[0,60,1,60],[0,52,1,52],[0,70,1,70],[0,53,1,53],[0,55,1,55],[0,56,1,56],[0,58,1,58],[0,59,1,59],[0,61,1,61]]}
["Patient","Morphine PO","Dose","Oral Morphine Equivalent","Morphine IM,IV,SC","Dose","Oral Morphine Equivalent","Codeine PO","Dose","Oral Morphine Equivalent","Dihydrocodeine PO","Dose","Oral Morphine Equivalent","Tramadol PO","Dose","Oral Morphine Equivalent","Diamorphine IM,IV, SC","Dose","Oral Morphine Equivalent","Hydromorphone PO","Dose","Oral Morphine Equivalent","Oxycodone PO","Dose","Oral Morphine Equivalent","Pethidine","Dose","Oral Morphine Equivalent","Fentanyl Lozenge or Nasal Spray","Dose","Oral Morphine Equivalent","Alfentanyl","Dose","Oral Morphine Equivalent","Tapentadol","Dose","Oral Morphine Equivalent","Fentanyl 12 Patch","Dose","Oral Morphine Equivalent","Fentanyl 25 Patch","Dose","Oral Morphine Equivalent","Fentanyl 50 Patch","Dose","Oral Morphine Equivalent","Fentanyl 75 Patch","Dose","Oral Morphine Equivalent","Fentanyl 100 Patch","Dose","Oral Morphine Equivalent","Butrans 5 (7 day)","Dose","Oral Morphine Equivalent","Butrans 10 (7 day)","Dose","Oral Morphine Equivalent","Butrans 20 ( 7 day)","Dose","Oral Morphine Equivalent","Transtec 35 (4 day)","Dose","Oral Morphine Equivalent","Transtec 52.5 (4  day)","Dose","Oral Morphine Equivalent","Transtec 70 (4 day)","Dose","Oral Morphine Equivalent","Combined Daily Total (mg)","Total No. Of Medicines That Contribute To Daily Total mg","Interval Of Collection / Supply",null,null,"More Immediate Release ‘Top Up’ Opioid Prescribed",null,"Also Taking Pregabalin",null,"Advised Risk Of Harm/Safe Storage Of CDs",null,"Advice Been Given Re: Impaired Driving Ability",null,"Other Concomitant Drugs: ",null,null,null,null,"Total Other","Comments","Possible Actions",null,null,null,"Actions Completed"]
[null,null,null,null,null,null,null,null,null,null,null,null,null,null,null,null,null,null,null,null,null,null,null,null,null,null,null,null,null,null,null,null,null,null,null,null,null,null,null,null,null,null,null,null,null,null,null,null,null,null,null,null,null,null,null,null,null,null,null,null,null,null,null,null,null,null,null,null,null,null,null,null,"Less","As Prescribed","More","Yes","No","No","Dose If Yes","Yes","No","Yes","No","Benzo Or Hypnotic","SSRI","Tricyclic","Quetiapine","Gabapentin",null,null,"Conversation With Patient Re: Risk/Benefit, Consider MUR & Template Letter To GP Practice  ","Template Letter To GP Practice","To Do This At Next Prescription Supply","Conversation With Patient Re: Risk of Polypharmcy"]
[]
[null,null,null,{"$f":"C4","v":0},null,null,{"$f":"F4*2","v":0},null,null,{"$f":"I4/10","v":0},null,null,{"$f":"L4/10","v":0},null,null,{"$f":"O4/10","v":0},null,null,{"$f":"R4*3.3","v":0},null,null,{"$f":"U4*5","v":0},null,null,{"$f":"X4*1.52","v":0},null,null,{"$f":"AA4/10","v":0},null,null,{"$f":"AD4/16","v":0},null,null,{"$f":"AG4/4","v":0},null,null,{"$f":"AJ4/2.5","v":0},null,null,{"$f":"IF(AL4,(30),0)","v":0},null,null,{"$f":"IF(AO4,60,0)","v":0},null,null,{"$f":"IF(AR4,120,0)","v":0},null,null,{"$f":"IF(AU4,180,0)","v":0},null,null,{"$f":"IF(AX4,240,0)","v":0},null,null,{"$f":"IF(BA4,12,0)","v":0},null,null,{"$f":"IF(BD4,24,0)","v":0},null,null,{"$f":"IF(BG4,48,0)","v":0},null,null,{"$f":"IF(BJ4,84,0)","v":0},null,null,{"$f":"IF(BM4,126,0)","v":0},null,null,{"$f":"IF(BP4,168,0)","v":0},{"$f":"SUM(D4,G4,J4,M4,P4,S4,V4,Y4,AB4,AE4,AH4,AK4,AN4,AQ4,AT4,AW4,AZ4,BC4,BF4,BI4,BL4,BO4,BR4)","v":0},{"$f":"SUM(B4,E4,H4,K4,N4,Q4,T4,W4,Z4,AC4,AF4,AI4,AL4,AO4,AR4,AU4,AX4,BA4,BD4,BG4,BJ4,BM4,BP4)","v":0},null,null,null,null,null,null,null,null,null,null,null,null,null,null,null,null,{"$f":"SUM(CF4:CJ4)","v":0},null,null,null,null,null,{"$f":"SUM(CM4:CP4)","v":0}]
[null,null,null,0,null,null,0,null,null,0,null,null,0,null,null,0,null,null,0,null,null,0,null,null,0,null,null,0,null,null,0,null,null,0,null,null,0,null,null,0,null,null,0,null,null,0,null,null,0,null,null,0,null,null,0,null,null,0,null,null,0,null,null,0,null,null,0,null,null,0,0,0,null,null,null,null,null,null,null,null,null,null,null,null,null,null,null,null,{"$f":"SUM(CF5:CJ5)","v":0},null,null,null,null,null,{"$f":"SUM(CM5:CP5)","v":0}]
[null,null,null,0,null,null,0,null,null,0,null,null,0,null,null,0,null,null,0,null,null,0,null,null,0,null,null,0,null,null,0,null,null,0,null,null,0,null,null,0,null,null,0,null,null,0,null,null,0,null,null,0,null,null,0,null,null,0,null,null,0,null,null,0,null,null,0,null,null,0,0,0,null,null,null,null,null,null,null,null,null,null,null,null,null,null,null,null,0,null,null,null,null,null,0]
[null,null,null,0,null,null,0,null,null,0,null,null,0,null,null,0,null,null,0,null,null,0,null,null,0,null,null,0,null,null,0,null,null,0,null,null,0,null,null,0,null,null,0,null,null,0,null,null,0,null,null,0,null,null,0,null,null,0,null,null,0,null,null,0,null,null,0,null,null,0,0,0,null,null,null,null,null,null,null,null,null,null,null,null,null,null,null,null,0,null,null,null,null,null,0]
[null,null,null,0,null,null,0,null,null,0,null,null,0,null,null,0,null,null,0,null,null,0,null,null,0,null,null,0,null,null,0,null,null,0,null,null,0,null,null,0,null,null,0,null,null,0,null,null,0,null,null,0,null,null,0,null,null,0,null,null,0,null,null,0,null,null,0,null,null,0,0,0,null,null,null,null,null,null,null,null,null,null,null,null,null,null,null,null,0,null,null,null,null,null,0]
[null,null,null,0,null,null,0,null,null,0,null,null,0,null,null,0,null,null,0,null,null,0,null,null,0,null,null,0,null,null,0,null,null,0,null,null,0,null,null,0,null,null,0,null,null,0,null,null,0,null,null,0,null,null,0,null,null,0,null,null,0,null,null,0,null,null,0,null,null,0,0,0,null,null,null,null,null,null,null,null,null,null,null,null,null,null,null,null,0,null,null,null,null,null,0]
[null,null,null,0,null,null,0,null,null,0,null,null,0,null,null,0,null,null,0,null,null,0,null,null,0,null,null,0,null,null,0,null,null,0,null,null,0,null,null,0,null,null,0,null,null,0,null,null,0,null,null,0,null,null,0,null,null,0,null,null,0,null,null,0,null,null,0,null,null,0,0,0,null,null,null,null,null,null,null,null,null,null,null,null,null,null,null,null,0,null,null,null,null,null,0]
[null,null,null,{"$f":"C11","v":0},null,null,{"$f":"F11*2","v":0},null,null,{"$f":"I11/10","v":0},null,null,{"$f":"L11/10","v":0},null,null,{"$f":"O11/10","v":0},null,null,{"$f":"R11*3.3","v":0},null,null,{"$f":"U11*5","v":0},null,null,{"$f":"X11*1.52","v":0},null,null,{"$f":"AA11/10","v":0},null,null,{"$f":"AD11/16","v":0},null,null,{"$f":"AG11/4","v":0},null,null,{"$f":"AJ11/2.5","v":0},null,null,{"$f":"IF(AL11,(30),0)","v":0},null,null,{"$f":"IF(AO11,60,0)","v":0},null,null,{"$f":"IF(AR11,120,0)","v":0},null,null,{"$f":"IF(AU11,180,0)","v":0},null,null,{"$f":"IF(AX11,240,0)","v":0},null,null,{"$f":"IF(BA11,12,0)","v":0},null,null,{"$f":"IF(BD11,24,0)","v":0},null,null,{"$f":"IF(BG11,48,0)","v":0},null,null,{"$f":"IF(BJ11,84,0)","v":0},null,null,{"$f":"IF(BM11,126,0)","v":0},null,null,{"$f":"IF(BP11,168,0)","v":0},{"$f":"SUM(D11,G11,J11,M11,P11,S11,V11,Y11,AB11,AE11,AH11,AK11,AN11,AQ11,AT11,AW11,AZ11,BC11,BF11,BI11,BL11,BO11,BR11)","v":0},{"$f":"SUM(B11,E11,H11,K11,N11,Q11,T11,W11,Z11,AC11,AF11,AI11,AL11,AO11,AR11,AU11,AX11,BA11,BD11,BG11,BJ11,BM11,BP11)","v":0},null,null,null,null,null,null,null,null,null,null,null,null,null,null,null,null,{"$f":"SUM(CF11:CJ11)","v":0},null,null,null,null,null,{"$f":"SUM(CM11:CP11)","v":0}]
[null,null,null,0,null,null,0,null,null,0,null,null,0,null,null,0,null,null,0,null,null,0,null,null,0,null,null,0,null,null,0,null,null,0,null,null,0,null,null,0,null,null,0,null,null,0,null,null,0,null,null,0,null,null,0,null,null,0,null,null,0,null,null,0,null,null,0,null,null,0,0,0,null,null,null,null,null,null,null,null,null,null,null,null,null,null,null,null,0,null,null,null,null,null,0]
[null,null,null,0,null,null,0,null,null,0,null,null,0,null,null,0,null,null,0,null,null,0,null,null,0,null,null,0,null,null,0,null,null,0,null,null,0,null,null,0,null,null,0,null,null,0,null,null,0,null,null,0,null,null,0,null,null,0,null,null,0,null,null,0,null,null,0,null,null,0,0,0,null,null,null,null,null,null,null,null,null,null,null,null,null,null,null,null,0,null,null,null,null,null,0]
[null,null,null,{"$f":"C14","v":0},null,null,{"$f":"F14*2","v":0},null,null,{"$f":"I14/10","v":0},null,null,{"$f":"L14/10","v":0},null,null,{"$f":"O14/10","v":0},null,null,{"$f":"R14*3.3","v":0},null,null,{"$f":"U14*5","v":0},null,null,{"$f":"X14*1.52","v":0},null,null,{"$f":"AA14/10","v":0},null,null,{"$f":"AD14/16","v":0},null,null,{"$f":"AG14/4","v":0},null,null,{"$f":"AJ14/2.5","v":0},null,null,{"$f":"IF(AL14,(30),0)","v":0},null,null,{"$f":"IF(AO14,60,0)","v":0},null,null,{"$f":"IF(AR14,120,0)","v":0},null,null,{"$f":"IF(AU14,180,0)","v":0},null,null,{"$f":"IF(AX14,240,0)","v":0},null,null,{"$f":"IF(BA14,12,0)","v":0},null,null,{"$f":"IF(BD14,24,0)","v":0},null,null,{"$f":"IF(BG14,48,0)","v":0},null,null,{"$f":"IF(BJ14,84,0)","v":0},null,null,{"$f":"IF(BM14,126,0)","v":0},null,null,{"$f":"IF(BP14,168,0)","v":0},{"$f":"SUM(D14,G14,J14,M14,P14,S14,V14,Y14,AB14,AE14,AH14,AK14,AN14,AQ14,AT14,AW14,AZ14,BC14,BF14,BI14,BL14,BO14,BR14)","v":0},{"$f":"SUM(B14,E14,H14,K14,N14,Q14,T14,W14,Z14,AC14,AF14,AI14,AL14,AO14,AR14,AU14,AX14,BA14,BD14,BG14,BJ14,BM14,BP14)","v":0},null,null,null,null,null,null,null,null,null,null,null,null,null,null,null,null,{"$f":"SUM(CF14:CJ14)","v":0},null,null,null,null,null,{"$f":"SUM(CM14:CP14)","v":0}]
[null,null,null,0,null,null,0,null,null,0,null,null,0,null,null,0,null,null,0,null,null,0,null,null,0,null,null,0,null,null,0,null,null,0,null,null,0,null,null,0,null,null,0,null,null,0,null,null,0,null,null,0,null,null,0,null,null,0,null,null,0,null,null,0,null,null,0,null,null,0,0,0,null,null,null,null,null,null,null,null,null,null,null,null,null,null,null,null,0,null,null,null,null,null,0]
[null,null,null,0,null,null,0,null,null,0,null,null,0,null,null,0,null,null,0,null,null,0,null,null,0,null,null,0,null,null,0,null,null,0,null,null,0,null,null,0,null,null,0,null,null,0,null,null,0,null,null,0,null,null,0,null,null,0,null,null,0,null,null,0,null,null,0,null,null,0,0,0,null,null,null,null,null,null,null,null,null,null,null,null,null,null,null,null,0,null,null,null,null,null,0]
[null,null,null,0,null,null,0,null,null,0,null,null,0,null,null,0,null,null,0,null,null,0,null,null,0,null,null,0,null,null,0,null,null,0,null,null,0,null,null,0,null,null,0,null,null,0,null,null,0,null,null,0,null,null,0,null,null,0,null,null,0,null,null,0,null,null,0,null,null,0,0,0,null,null,null,null,null,null,null,null,null,null,null,null,null,null,null,null,0,null,null,null,null,null,0]
[null,null,null,0,null,null,0,null,null,0,null,null,0,null,null,0,null,null,0,null,null,0,null,null,0,null,null,0,null,null,0,null,null,0,null,null,0,null,null,0,null,null,0,null,null,0,null,null,0,null,null,0,null,null,0,null,null,0,null,null,0,null,null,0,null,null,0,null,null,0,0,0,null,null,null,null,null,null,null,null,null,null,null,null,null,null,null,null,0,null,null,null,null,null,0]
[null,null,null,0,null,null,0,null,null,0,null,null,0,null,null,0,null,null,0,null,null,0,null,null,0,null,null,0,null,null,0,null,null,0,null,null,0,null,null,0,null,null,0,null,null,0,null,null,0,null,null,0,null,null,0,null,null,0,null,null,0,null,null,0,null,null,0,null,null,0,0,0,null,null,null,null,null,null,null,null,null,null,null,null,null,null,null,null,0,null,null,null,null,null,0]
[null,null,null,0,null,null,0,null,null,0,null,null,0,null,null,0,null,null,0,null,null,0,null,null,0,null,null,0,null,null,0,null,null,0,null,null,0,null,null,0,null,null,0,null,null,0,null,null,0,null,null,0,null,null,0,null,null,0,null,null,0,null,null,0,null,null,0,null,null,0,0,0,null,null,null,null,null,null,null,null,null,null,null,null,null,null,null,null,0,null,null,null,null,null,0]
[null,null,null,0,null,null,0,null,null,0,null,null,0,null,null,0,null,null,0,null,null,0,null,null,0,null,null,0,null,null,0,null,null,0,null,null,0,null,null,0,null,null,0,null,null,0,null,null,0,null,null,0,null,null,0,null,null,0,null,null,0,null,null,0,null,null,0,null,null,0,0,0,null,null,null,null,null,null,null,null,null,null,null,null,null,null,null,null,0,null,null,null,null,null,0]
[null,null,null,0,null,null,0,null,null,0,null,null,0,null,null,0,null,null,0,null,null,0,null,null,0,null,null,0,null,null,0,null,null,0,null,null,0,null,null,0,null,null,0,null,null,0,null,null,0,null,null,0,null,null,0,null,null,0,null,null,0,null,null,0,null,null,0,null,null,0,0,0,null,null,null,null,null,null,null,null,null,null,null,null,null,null,null,null,0,null,null,null,null,null,0]
[null,null,null,0,null,null,0,null,null,0,null,null,0,null,null,0,null,null,0,null,null,0,null,null,0,null,null,0,null,null,0,null,null,0,null,null,0,null,null,0,null,null,0,null,null,0,null,null,0,null,null,0,null,null,0,null,null,0,null,null,0,null,null,0,null,null,0,null,null,0,0,0,null,null,null,null,null,null,null,null,null,null,null,null,null,null,null,null,0,null,null,null,null,null,0]
["Totals:",null,null,null,null,null,null,null,null,null,null,null,null,null,null,null,null,null,null,null,null,null,null,null,null,null,null,null,null,null,null,null,null,null,null,null,null,null,null,null,null,null,null,null,null,null,null,null,null,null,null,null,null,null,null,null,null,null,null,null,null,null,null,null,null,null,null,null,null,null,{"$f":"SUM(BS4:BS23)","v":0},null,null,null,null,null,null,null,null,null,null,null,null,null,null,null,null,null,{"$f":"SUM(CK4:CK23)","v":0},null,{"$f":"COUNTIF(CM4:CM23,1)","v":0},{"$f":"COUNTIF(CN4:CN23,1)","v":0},{"$f":"COUNTIF(CO4:CO23,1)","v":0},{"$f":"COUNTIF(CP4:CP23,1)","v":0},{"$f":"SUM(CQ4:CQ23)","v":0}]

{"sheet":"Report To NHSE","index":1,"n_rows":18,"n_cols":15,"rows_kept":18,"cut":false,"hidden":false,"merged":[[0,9,0,13],[0,14,1,14],[0,4,0,8],[0,0,1,0],[0,1,1,1],[0,2,1,2],[0,3,1,3]]}
["Pharmacy Code","Locality","CCG","Total Patients Reviewed","Of Those Reviewed",null,null,null,null,"Other Concomitant Drugs: ",null,null,null,null,"Total Other"]
[null,null,null,null,"How Many Are Prescribed \n> 120mg (Morphine Equiv.)","How Many Patients Have More Than 1 Immediate Release Opioid","How Many Patients Also Taking Gabapentin","How Many Patients Also Taking Pregabalin","How Many Patients Are Taking 3 Or More Opioid Prep's","Benzo Or Hypnotic","SSRI","Tricyclic","Quetiapine","Gabapentin"]
[null,{"$f":"VLOOKUP(A3,'[1]Pharmacy contacts'!$A$4:$N$856,14,FALSE)","v":{"$error":"#N/A"}},{"$f":"VLOOKUP(A3,'[1]Pharmacy contacts'!$A$4:$N$856,10,FALSE)","v":{"$error":"#N/A"}},{"$f":"Audit!BS24","v":0},{"$f":"COUNTIF(Audit!BS4:BS23,\">\"&\"120\")","v":0},{"$f":"COUNTIF(Audit!BX4:BX23,1)","v":0},{"$f":"COUNTIF(Audit!CA4:CA23,1)","v":0},{"$f":"COUNTIF(Audit!CJ4:CJ23,1)","v":0},{"$f":"COUNTIF(Audit!BT4:BT23,\">\"&\"3\")","v":0},{"$f":"Audit!#REF!","v":{"$error":"#REF!"}},{"$f":"Audit!#REF!","v":{"$error":"#REF!"}},{"$f":"Audit!#REF!","v":{"$error":"#REF!"}},{"$f":"Audit!#REF!","v":{"$error":"#REF!"}},{"$f":"Audit!#REF!","v":{"$error":"#REF!"}},{"$f":"Audit!#REF!","v":{"$error":"#REF!"}}]
[null,null,null,null,null,null,null,null,null,{"$f":"Audit!#REF!","v":{"$error":"#REF!"}},{"$f":"Audit!#REF!","v":{"$error":"#REF!"}},{"$f":"Audit!#REF!","v":{"$error":"#REF!"}},{"$f":"Audit!#REF!","v":{"$error":"#REF!"}},{"$f":"Audit!#REF!","v":{"$error":"#REF!"}},{"$f":"Audit!#REF!","v":{"$error":"#REF!"}}]
[null,null,null,null,null,null,null,null,null,{"$f":"Audit!#REF!","v":{"$error":"#REF!"}},{"$f":"Audit!#REF!","v":{"$error":"#REF!"}},{"$f":"Audit!#REF!","v":{"$error":"#REF!"}},{"$f":"Audit!#REF!","v":{"$error":"#REF!"}},{"$f":"Audit!#REF!","v":{"$error":"#REF!"}},{"$f":"Audit!#REF!","v":{"$error":"#REF!"}}]
[null,null,null,null,null,null,null,null,null,{"$f":"Audit!CF5","v":0},{"$f":"Audit!CG5","v":0},{"$f":"Audit!CH5","v":0},{"$f":"Audit!CI5","v":0},{"$f":"Audit!CJ5","v":0},{"$f":"Audit!CK5","v":0}]
[null,null,null,null,null,null,null,null,null,{"$f":"Audit!CF6","v":0},{"$f":"Audit!CG6","v":0},{"$f":"Audit!CH6","v":0},{"$f":"Audit!CI6","v":0},{"$f":"Audit!CJ6","v":0},{"$f":"Audit!CK6","v":0}]
[null,null,null,null,null,null,null,null,null,{"$f":"Audit!CF7","v":0},{"$f":"Audit!CG7","v":0},{"$f":"Audit!CH7","v":0},{"$f":"Audit!CI7","v":0},{"$f":"Audit!CJ7","v":0},{"$f":"Audit!CK7","v":0}]
[null,null,null,null,null,null,null,null,null,{"$f":"Audit!CF8","v":0},{"$f":"Audit!CG8","v":0},{"$f":"Audit!CH8","v":0},{"$f":"Audit!CI8","v":0},{"$f":"Audit!CJ8","v":0},{"$f":"Audit!CK8","v":0}]
[null,null,null,null,null,null,null,null,null,{"$f":"Audit!CF9","v":0},{"$f":"Audit!CG9","v":0},{"$f":"Audit!CH9","v":0},{"$f":"Audit!CI9","v":0},{"$f":"Audit!CJ9","v":0},{"$f":"Audit!CK9","v":0}]
[null,null,null,null,null,null,null,null,null,{"$f":"Audit!CF10","v":0},{"$f":"Audit!CG10","v":0},{"$f":"Audit!CH10","v":0},{"$f":"Audit!CI10","v":0},{"$f":"Audit!CJ10","v":0},{"$f":"Audit!CK10","v":0}]
[null,null,null,null,null,null,null,null,null,{"$f":"Audit!CF14","v":0},{"$f":"Audit!CG14","v":0},{"$f":"Audit!CH14","v":0},{"$f":"Audit!CI14","v":0},{"$f":"Audit!CJ14","v":0},{"$f":"Audit!CK14","v":0}]
[null,null,null,null,null,null,null,null,null,{"$f":"Audit!CF15","v":0},{"$f":"Audit!CG15","v":0},{"$f":"Audit!CH15","v":0},{"$f":"Audit!CI15","v":0},{"$f":"Audit!CJ15","v":0},{"$f":"Audit!CK15","v":0}]
[null,null,null,null,null,null,null,null,null,{"$f":"Audit!CF16","v":0},{"$f":"Audit!CG16","v":0},{"$f":"Audit!CH16","v":0},{"$f":"Audit!CI16","v":0},{"$f":"Audit!CJ16","v":0},{"$f":"Audit!CK16","v":0}]
[null,null,null,null,null,null,null,null,null,{"$f":"Audit!CF17","v":0},{"$f":"Audit!CG17","v":0},{"$f":"Audit!CH17","v":0},{"$f":"Audit!CI17","v":0},{"$f":"Audit!CJ17","v":0},{"$f":"Audit!CK17","v":0}]
[null,null,null,null,null,null,null,null,null,{"$f":"Audit!CF21","v":0},{"$f":"Audit!CG21","v":0},{"$f":"Audit!CH21","v":0},{"$f":"Audit!CI21","v":0},{"$f":"Audit!CJ21","v":0},{"$f":"Audit!CK21","v":0}]
[null,null,null,null,null,null,null,null,null,{"$f":"Audit!CF22","v":0},{"$f":"Audit!CG22","v":0},{"$f":"Audit!CH22","v":0},{"$f":"Audit!CI22","v":0},{"$f":"Audit!CJ22","v":0},{"$f":"Audit!CK22","v":0}]
[null,null,null,null,null,null,null,null,null,{"$f":"Audit!CF23","v":0},{"$f":"Audit!CG23","v":0},{"$f":"Audit!CH23","v":0},{"$f":"Audit!CI23","v":0},{"$f":"Audit!CJ23","v":0},{"$f":"Audit!CK23","v":0}]

{"sheet":"Sheet3","index":2,"n_rows":0,"n_cols":0,"rows_kept":0,"cut":false,"hidden":false,"merged":[]}